bitfinex-derivatives/quotes_SOLF0:USTF0_20260110
["timestamp","ask_amount","ask_price","bid_price","bid_amount"]
[1768023600786,6.65951896,136.28,136.21,0.32786763]
[1768023601795,5.4843146,136.27,136.21,0.32786763]
[1768023601995,6.65951896,136.28,136.21,0.32786763]
[1768023602196,5.4843146,136.27,136.21,0.32786763]
[1768023602395,6.65951896,136.28,136.21,0.32786763]
[1768023602599,5.48565149,136.27,136.21,0.32786763]
[1768023602794,0.04671896,136.28,136.22,0.32786763]
[1768023603095,5.48557334,136.27,136.22,0.32786763]
[1768023603299,0.04671896,136.28,136.22,0.32786763]
[1768023603489,5.4866195,136.27,136.22,0.32786763]
[1768023603688,6.65941896,136.28,136.22,0.32786763]
[1768023603984,5.4866195,136.27,136.22,0.32786763]
[1768023604188,6.65941896,136.28,136.22,0.32786763]
[1768023604484,5.48784637,136.27,136.22,0.32786763]
[1768023604689,6.65941896,136.28,136.22,0.32786763]
[1768023604889,5.48784637,136.27,136.22,0.32786763]
[1768023605092,6.65941896,136.28,136.22,0.32786763]
[1768023605291,5.48927937,136.27,136.22,0.32786763]
[1768023605490,6.65941896,136.28,136.22,0.32786763]
[1768023605697,5.48927937,136.27,136.22,0.32786763]
[1768023605896,6.65941896,136.28,136.22,0.32786763]
[1768023606097,5.48927937,136.27,136.23,0.33228042]
[1768023606401,0.04671896,136.28,136.23,0.33228042]
[1768023608797,0.04671896,136.28,136.24,0.33228042]
[1768023609691,0.04671896,136.28,136.25,0.33228042]
[1768023611394,190.72424771,136.35,136.25,0.38420617]
[1768023611700,6.6106,136.33,136.25,0.38420617]
[1768023611997,5.48527785,136.32,136.25,0.33228042]
[1768023612197,5.48527785,136.31,136.25,0.33228042]
[1768023612398,6.6106,136.33,136.25,0.33228042]
[1768023612696,5.48411474,136.32,136.25,0.33228042]
[1768023612897,5.48411474,136.31,136.25,0.33228042]
[1768023613096,6.6106,136.33,136.25,0.33228042]
[1768023613299,5.48320098,136.32,136.25,0.33228042]
[1768023613501,5.48320098,136.31,136.25,0.33228042]
[1768023613703,6.6106,136.33,136.25,0.33228042]
[1768023613903,5.48320465,136.32,136.25,0.33228042]
[1768023614096,6.6106,136.33,136.25,0.33228042]
[1768023614097,5.48320465,136.31,136.25,0.33228042]
[1768023614291,6.6106,136.33,136.25,0.33228042]
[1768023614496,5.48250878,136.32,136.25,0.33228042]
[1768023614693,5.48250878,136.31,136.25,0.33228042]
[1768023614900,6.6106,136.33,136.25,0.33228042]
[1768023615105,5.48250878,136.32,136.25,0.33228042]
[1768023615302,5.48250878,136.31,136.25,0.33228042]
[1768023615607,6.6106,136.33,136.25,0.33228042]
[1768023615804,5.48199571,136.32,136.25,0.33228042]
[1768023616101,6.6106,136.33,136.26,0.33228042]
[1768023616406,5.48060982,136.32,136.26,0.33228042]
[1768023616596,6.6106,136.33,136.27,0.04684774]
[1768023616797,5.48060821,136.32,136.27,0.04684774]
[1768023617096,6.6106,136.33,136.27,0.04684774]
[1768023617297,5.47977852,136.32,136.27,0.04684774]
[1768023617497,6.6106,136.33,136.27,0.04684774]
[1768023617697,5.47977486,136.32,136.27,0.04684774]
[1768023617897,6.6106,136.33,136.27,0.04684774]
[1768023618200,5.47977486,136.32,136.27,0.04684774]
[1768023618400,6.6106,136.33,136.27,0.04684774]
[1768023618601,5.47908303,136.32,136.27,0.04684774]
[1768023618905,7.76064771,136.35,136.27,0.37912816]
[1768023619101,12.08898303,136.34,136.27,0.37912816]
[1768023619301,5.47908303,136.33,136.27,0.37912816]
[1768023619499,5.47908303,136.32,136.27,0.33228042]
[1768023619698,1.15104771,136.35,136.27,0.33228042]
[1768023619900,6.6103,136.33,136.27,0.33228042]
[1768023620101,5.47850134,136.32,136.27,0.33228042]
[1768023620303,6.6103,136.33,136.27,0.33228042]
[1768023620504,5.47806904,136.32,136.27,0.33228042]
[1768023620701,6.6103,136.33,136.27,0.33228042]
[1768023620904,5.47806742,136.32,136.27,0.33228042]
[1768023621104,6.6103,136.33,136.27,0.33228042]
[1768023621305,5.47759541,136.32,136.27,0.33228042]
[1768023621506,6.6103,136.33,136.27,0.33228042]
[1768023621708,5.47759541,136.32,136.27,0.33228042]
[1768023622003,6.6103,136.33,136.27,0.33228042]
[1768023622204,5.47759541,136.32,136.27,0.33228042]
[1768023622400,6.6103,136.33,136.27,0.33228042]
[1768023622601,5.47723479,136.32,136.27,0.33228042]
[1768023622800,6.6103,136.33,136.27,0.33228042]
[1768023622999,5.47723112,136.32,136.27,0.33228042]
[1768023623199,6.6103,136.33,136.27,0.33228042]
[1768023623402,5.47695836,136.32,136.27,0.33228042]
[1768023623606,6.6103,136.33,136.27,0.33228042]
[1768023623802,5.47695836,136.32,136.27,0.33228042]
[1768023624003,6.6103,136.33,136.27,0.33228042]
[1768023624206,5.47682384,136.32,136.25,0.33228042]
[1768023624505,7.76134771,136.33,136.25,0.33228042]
[1768023624707,5.47683969,136.32,136.25,0.33228042]
[1768023624907,7.76134771,136.33,136.25,0.33228042]
[1768023625095,5.47683969,136.32,136.25,0.33228042]
[1768023625300,7.76134771,136.33,136.25,0.33228042]
[1768023625500,5.47687785,136.32,136.25,0.33228042]
[1768023625705,7.76134771,136.33,136.25,0.33228042]
[1768023626005,5.47687785,136.32,136.25,0.33228042]
[1768023626202,7.76134771,136.33,136.25,0.33228042]
[1768023626504,5.47683226,136.32,136.25,0.33228042]
[1768023626704,7.76134771,136.33,136.25,0.33228042]
[1768023626909,5.47683226,136.32,136.25,0.33228042]
[1768023627206,7.76134771,136.33,136.25,0.33228042]
[1768023627410,5.4770476,136.32,136.25,0.33228042]
[1768023627705,7.76134771,136.33,136.25,0.33228042]
[1768023627906,5.47724322,136.32,136.26,0.33228042]
[1768023628206,6.6103,136.33,136.26,0.33228042]
[1768023628410,5.47692408,136.32,136.26,0.33228042]
[1768023628604,6.6103,136.33,136.26,0.33228042]
[1768023628908,5.47692408,136.32,136.26,0.33228042]
[1768023629204,6.6103,136.33,136.26,0.33228042]
[1768023629417,5.47707164,136.32,136.26,0.33228042]
[1768023629611,6.6103,136.33,136.26,0.33228042]
[1768023629811,5.47707164,136.32,136.26,0.33228042]
[1768023630010,6.6103,136.33,136.26,0.33228042]
[1768023630212,5.47709,136.32,136.26,0.33228042]
[1768023630510,6.6103,136.33,136.26,0.33228042]
[1768023630699,5.4772864,136.32,136.26,0.33228042]
[1768023630997,6.6103,136.33,136.26,0.33228042]
[1768023631201,5.43135146,136.32,136.26,0.33228042]
[1768023631411,6.6103,136.33,136.26,0.33228042]
[1768023631603,5.43163187,136.32,136.26,0.33228042]
[1768023631799,6.6103,136.33,136.26,0.33228042]
[1768023632003,5.43163508,136.32,136.26,0.33228042]
[1768023632208,6.6103,136.33,136.26,0.33228042]
[1768023632409,5.43189291,136.32,136.26,0.33228042]
[1768023632609,6.6103,136.33,136.26,0.33228042]
[1768023632910,5.43189291,136.32,136.26,0.33228042]
[1768023633114,6.6103,136.33,136.26,0.33228042]
[1768023633413,5.43221404,136.32,136.26,0.33228042]
[1768023633611,6.6103,136.33,136.26,0.33228042]
[1768023633911,5.43221404,136.32,136.26,0.33228042]
[1768023634100,6.6103,136.33,136.26,0.33228042]
[1768023634304,5.43260091,136.32,136.26,0.33228042]
[1768023634505,6.6103,136.33,136.26,0.33228042]
[1768023634706,5.43260091,136.32,136.26,0.33228042]
[1768023634904,6.6103,136.33,136.26,0.33228042]
[1768023635207,5.43279543,136.32,136.26,0.33228042]
[1768023635406,6.6094,136.35,136.26,6.94568042]
[1768023635611,5.43310894,136.34,136.26,6.94568042]
[1768023635810,5.43310894,136.33,136.26,6.94568042]
[1768023636004,5.43310894,136.32,136.26,6.94568042]
[1768023636204,6.6094,136.35,136.26,6.94568042]
[1768023636412,5.43303107,136.34,136.26,6.94568042]
[1768023636614,5.43303107,136.33,136.26,6.94568042]
[1768023636807,5.43303107,136.32,136.26,6.94568042]
[1768023637008,6.6094,136.35,136.26,6.94568042]
[1768023637310,5.43316258,136.34,136.28,0.04683382]
[1768023637507,5.43316258,136.33,136.28,0.04683382]
[1768023637902,5.43316258,136.33,136.24,6.92916136]
[1768023638109,12.04416258,136.32,136.24,0.31496136]
[1768023638411,5.43316258,136.31,136.24,0.31496136]
[1768023641317,12.04436258,136.31,136.24,0.31496136]
[1768023641614,102.8164,136.35,136.25,0.31496136]
[1768023641802,5.43502445,136.34,136.25,0.31496136]
[1768023642004,5.43502445,136.33,136.25,0.31496136]
[1768023642206,5.43502445,136.32,136.25,0.31496136]
[1768023642405,5.48256101,136.31,136.25,0.31496136]
[1768023642616,0.04753656,136.31,136.25,0.31496136]
[1768023647809,6.65873656,136.31,136.25,0.31496136]
[1768023648112,5.44099276,136.3,136.23,0.31496136]
[1768023648417,5.44099276,136.29,136.23,0.31496136]
[1768023648616,6.6112,136.31,136.23,0.31496136]
[1768023648918,5.44278946,136.3,136.23,0.31496136]
[1768023649111,5.44278946,136.29,136.23,6.92986136]
[1768023649311,6.6112,136.31,136.23,6.92986136]
[1768023649612,5.44421392,136.3,136.23,6.92986136]
[1768023649814,5.44421392,136.29,136.23,6.92986136]
[1768023650114,6.6112,136.31,136.23,6.92986136]
[1768023650422,5.44594657,136.3,136.23,6.92986136]
[1768023650616,5.44594657,136.29,136.23,6.92986136]
[1768023650916,6.6112,136.31,136.23,6.92986136]
[1768023651117,5.44595184,136.3,136.23,6.92986136]
[1768023651316,5.44595184,136.29,136.23,6.92986136]
[1768023651519,6.6112,136.31,136.23,6.92986136]
[1768023651820,5.44773713,136.3,136.24,0.32139135]
[1768023652121,5.44773713,136.29,136.24,0.32139135]
[1768023652423,6.6112,136.31,136.24,0.32139135]
[1768023652720,5.44765485,136.3,136.24,0.32139135]
[1768023652919,5.44765485,136.29,136.24,0.32139135]
[1768023653121,6.6112,136.31,136.24,0.32139135]
[1768023653325,5.44784974,136.3,136.24,0.32139135]
[1768023653622,5.49421758,136.29,136.24,0.32139135]
[1768023653814,0.04636784,136.29,136.24,0.32139135]
[1768023655327,108.81,136.36,136.18,10.97758733]
[1768023655328,0.03313879,136.32,136.26,0.32139135]
[1768023655525,5.44696726,136.31,136.26,0.32139135]
[1768023655722,0.03313879,136.32,136.26,0.32139135]
[1768023655927,5.44696447,136.31,136.26,0.32139135]
[1768023656128,0.03313879,136.32,136.26,0.32139135]
[1768023656417,5.44699521,136.31,136.26,0.32139135]
[1768023656624,0.03313879,136.32,136.28,0.05174736]
[1768023656818,5.44699156,136.31,136.28,0.05174736]
[1768023657013,0.03313879,136.32,136.28,0.05174736]
[1768023657226,5.44699156,136.31,136.28,0.05174736]
[1768023657424,0.03313879,136.32,136.28,0.05174736]
[1768023657628,5.44697977,136.31,136.28,0.05174736]
[1768023657824,0.03313879,136.32,136.28,0.05174736]
[1768023658024,5.44697977,136.31,136.28,0.05174736]
[1768023658218,0.03313879,136.32,136.28,0.05174736]
[1768023658516,5.44696809,136.31,136.28,0.05174736]
[1768023658713,0.03313879,136.32,136.28,0.05174736]
[1768023658918,5.44696809,136.31,136.28,0.05174736]
[1768023659217,0.03313879,136.32,136.28,0.05174736]
[1768023659418,5.44695491,136.31,136.28,0.05174736]
[1768023659614,0.03313879,136.32,136.28,0.05174736]
[1768023659820,5.44687713,136.31,136.28,0.05174736]
[1768023660019,0.03313879,136.32,136.28,0.05174736]
[1768023660220,5.44687713,136.31,136.28,0.05174736]
[1768023660419,0.03313879,136.32,136.28,0.05174736]
[1768023660620,0.03313879,136.34,136.28,0.37313871]
[1768023660820,5.44628488,136.33,136.28,0.37313871]
[1768023661033,0.03313879,136.34,136.28,0.37313871]
[1768023661334,5.4430473,136.33,136.28,0.37313871]
[1768023661530,0.03313879,136.34,136.28,0.37313871]
[1768023661726,5.44304408,136.33,136.28,0.37313871]
[1768023661927,0.03313879,136.34,136.28,0.37313871]
[1768023662127,5.44304773,136.33,136.28,0.37313871]
[1768023662321,0.03313879,136.34,136.28,0.37313871]
[1768023662522,5.44169151,136.33,136.28,0.37313871]
[1768023662723,0.03313879,136.34,136.28,0.37313871]
[1768023663233,6.64293879,136.34,136.28,0.37313871]
[1768023664231,0.03313879,136.34,136.28,0.37313871]
[1768023669433,0.03313879,136.34,136.29,0.30673289]
[1768023671034,0.03313879,136.34,136.29,6.91873289]
[1768023672535,0.03313879,136.34,136.29,0.30673289]
[1768023674638,6.64163933,136.36,136.29,0.30673289]
[1768023674837,5.4303715,136.35,136.29,0.30673289]
[1768023675036,0.03283933,136.35,136.29,0.30673289]
[1768023675535,6.64113933,136.37,136.31,0.35976828]
[1768023675735,5.42966442,136.36,136.31,0.35976828]
[1768023675935,0.03283933,136.36,136.31,0.35976828]
[1768023676142,0.03283933,136.36,136.31,0.05303539]
[1768023678744,6.64163933,136.36,136.31,0.05303539]
[1768023678940,0.03283933,136.35,136.31,0.05303539]
[1768023705973,5.35598609,136.34,136.31,0.05303539]
[1768023706176,0.03283933,136.35,136.31,0.05303539]
[1768023706471,5.35602187,136.34,136.31,0.05303539]
[1768023706671,0.03283933,136.35,136.31,0.05303539]
[1768023706973,5.35602187,136.34,136.31,0.05303539]
[1768023707166,0.03283933,136.35,136.31,0.05303539]
[1768023707366,5.35635001,136.34,136.31,0.05303539]
[1768023707562,0.03283933,136.35,136.31,0.05303539]
[1768023707766,5.35635001,136.34,136.31,0.05303539]
[1768023707967,0.03283933,136.35,136.31,0.05303539]
[1768023708178,5.35635001,136.34,136.31,0.05303539]
[1768023708369,0.03283933,136.35,136.31,0.05303539]
[1768023708570,5.35643706,136.34,136.31,0.05303539]
[1768023708877,0.03283933,136.35,136.31,0.05303539]
[1768023709074,5.35643706,136.34,136.31,0.05303539]
[1768023709274,0.03283933,136.35,136.31,0.05303539]
[1768023709477,5.3566731,136.34,136.31,0.05303539]
[1768023709666,0.03283933,136.35,136.31,0.05303539]
[1768023709866,5.3566731,136.34,136.31,0.05303539]
[1768023710066,0.03283933,136.35,136.31,0.05303539]
[1768023710266,5.35693963,136.34,136.31,0.05303539]
[1768023710475,6.64203933,136.35,136.31,0.05303539]
[1768023710669,5.35693963,136.34,136.31,0.05303539]
[1768023710971,6.64203933,136.35,136.31,0.05303539]
[1768023717178,6.6092,136.35,136.31,0.37242353]
[1768023717877,87.9023832,136.37,136.31,0.37242353]
[1768023718076,5.35795348,136.36,136.31,0.37242353]
[1768023718277,5.35795348,136.35,136.31,0.37242353]
[1768023718479,87.9023832,136.37,136.31,0.37242353]
[1768023718779,11.99951146,136.36,136.31,0.37242353]
[1768023718981,5.35795046,136.35,136.31,0.37242353]
[1768023719183,6.641561,136.36,136.31,0.37242353]
[1768023719380,5.35797093,136.35,136.31,0.37242353]
[1768023719579,6.641561,136.36,136.31,0.37242353]
[1768023719879,5.35797093,136.35,136.31,0.37242353]
[1768023720073,6.641561,136.36,136.31,0.37242353]
[1768023720270,5.358099,136.35,136.31,0.37242353]
[1768023720468,6.641561,136.36,136.31,0.37242353]
[1768023720670,5.358099,136.35,136.31,0.37242353]
[1768023720873,6.641561,136.36,136.31,0.37242353]
[1768023721076,5.358099,136.35,136.31,0.37242353]
[1768023721278,6.641561,136.36,136.31,0.37242353]
[1768023721471,5.34436897,136.35,136.31,0.37242353]
[1768023721671,6.641561,136.36,136.31,0.37242353]
[1768023721869,5.34436738,136.35,136.31,0.37242353]
[1768023722083,6.641561,136.36,136.31,0.37242353]
[1768023722270,5.34434194,136.35,136.31,0.37242353]
[1768023722474,6.641561,136.36,136.31,0.37242353]
[1768023722778,5.34406477,136.35,136.31,0.37242353]
[1768023723075,6.641561,136.36,136.31,0.37242353]
[1768023723276,5.34423134,136.35,136.31,0.37242353]
[1768023723472,6.641561,136.36,136.31,0.37242353]
[1768023723673,5.34415877,136.35,136.31,0.37242353]
[1768023723871,6.641561,136.36,136.31,0.37242353]
[1768023724073,5.34415877,136.35,136.31,0.37242353]
[1768023724269,6.641561,136.36,136.31,0.37242353]
[1768023724473,0.03279651,136.34,136.31,0.05303539]
[1768023725074,0.03279651,136.34,136.29,0.3192576]
[1768023725075,0.03279651,136.34,136.27,6.9319576]
[1768023725282,0.03279651,136.34,136.28,0.3192576]
[1768023725484,0.08424608,136.34,136.28,0.3192576]
[1768023732294,0.08424608,136.34,136.29,0.3192576]
[1768023742206,0.32815977,136.29,136.22,16.53904193]
[1768023742401,6.82388479,136.28,136.17,102.9433]
[1768023742598,86.72,136.29,136.18,102.9382]
[1768023742799,5.34692206,136.28,136.19,1.1495222]
[1768023742994,87.04815977,136.29,136.19,1.1495222]
[1768023743200,0.04830174,136.25,136.19,1.1495222]
[1768023743605,0.04830174,136.25,136.2,6.6162]
[1768023744303,0.04830174,136.25,136.21,0.3192576]
[1768023762423,0.30662553,136.28,136.21,0.3192576]
[1768023763421,6.6132,136.27,136.21,0.3192576]
[1768023764423,6.6132,136.27,136.23,0.04761981]
[1768023766318,6.91982553,136.27,136.23,0.04761981]
[1768023766522,6.91982553,136.27,136.21,0.3192576]
[1768023766824,0.0557919,136.26,136.21,0.3192576]
[1768023770835,0.37031077,136.26,136.19,0.32389259]
[1768023771332,0.31451887,136.26,136.19,0.32389259]
[1768023771635,0.04822602,136.24,136.19,0.32389259]
[1768023782746,0.36274489,136.24,136.19,0.32389259]
[1768023783947,0.36274489,136.24,136.15,86.76]
[1768023783948,6.94053887,136.23,136.17,0.31095503]
[1768023784846,0.05522293,136.21,136.17,0.31095503]
[1768023815187,5.84171805,136.2,136.17,0.31095503]
[1768023815382,0.05522293,136.21,136.17,0.31095503]
[1768023815675,5.84176318,136.2,136.17,0.31095503]
[1768023815880,0.05522293,136.21,136.17,0.31095503]
[1768023816083,5.84176318,136.2,136.17,0.31095503]
[1768023816289,0.05522293,136.21,136.17,0.31095503]
[1768023816489,5.84208695,136.2,136.17,0.31095503]
[1768023816789,0.05522293,136.21,136.17,0.31095503]
[1768023816990,5.84208695,136.2,136.17,0.31095503]
[1768023817288,0.05522293,136.21,136.17,0.31095503]
[1768023817490,5.84246596,136.2,136.17,0.31095503]
[1768023817691,0.05522293,136.21,136.17,0.31095503]
[1768023817894,5.84246596,136.2,136.17,0.31095503]
[1768023818195,0.05522293,136.21,136.17,0.31095503]
[1768023818492,5.84284661,136.2,136.17,0.31095503]
[1768023818689,0.05522293,136.21,136.17,0.31095503]
[1768023818888,5.84291723,136.2,136.17,0.31095503]
[1768023819093,0.05522293,136.21,136.17,0.31095503]
[1768023819387,5.8433629,136.2,136.17,0.31095503]
[1768023819588,0.05522293,136.21,136.17,0.31095503]
[1768023819775,5.84342241,136.2,136.17,0.31095503]
[1768023819980,0.05522293,136.21,136.17,0.31095503]
[1768023820179,5.84342241,136.2,136.17,0.31095503]
[1768023820375,0.05522293,136.21,136.17,0.31095503]
[1768023820591,5.84400695,136.2,136.17,0.31095503]
[1768023820888,0.05522293,136.21,136.17,0.31095503]
[1768023821088,5.84410185,136.2,136.14,6.6189]
[1768023821290,0.05522293,136.21,136.14,6.6189]
[1768023821488,5.84474964,136.2,136.14,6.6189]
[1768023821683,0.05522293,136.21,136.14,6.6189]
[1768023821883,5.84474964,136.2,136.14,6.6189]
[1768023822085,0.05522293,136.21,136.14,6.6189]
[1768023822284,5.844746,136.2,136.14,6.6189]
[1768023822483,0.05522293,136.21,136.14,6.6189]
[1768023822690,5.845496,136.2,136.14,6.6189]
[1768023822887,0.05522293,136.21,136.14,6.6189]
[1768023823084,5.845496,136.2,136.15,0.32948678]
[1768023823281,0.05522293,136.21,136.15,0.32948678]
[1768023823481,5.84638164,136.2,136.15,0.32948678]
[1768023823779,0.05522293,136.21,136.15,0.32948678]
[1768023823980,5.84638164,136.2,136.15,0.32948678]
[1768023824185,0.05522293,136.21,136.15,0.32948678]
[1768023824482,5.84761036,136.2,136.15,0.32948678]
[1768023824681,0.05522293,136.21,136.15,0.32948678]
[1768023824892,5.84757408,136.2,136.15,0.32948678]
[1768023825186,0.05522293,136.21,136.15,0.32948678]
[1768023825394,5.84757408,136.2,136.15,0.32948678]
[1768023825575,0.05522293,136.21,136.15,0.32948678]
[1768023825780,5.84754509,136.2,136.15,0.32948678]
[1768023825979,0.05522293,136.21,136.15,0.32948678]
[1768023826184,5.84754509,136.2,136.15,0.32948678]
[1768023826392,5.84754509,136.19,136.15,0.32948678]
[1768023826582,0.05522293,136.21,136.15,0.32948678]
[1768023826777,5.84876603,136.2,136.15,0.32948678]
[1768023826992,5.84876603,136.19,136.15,0.32948678]
[1768023827290,0.05522293,136.21,136.15,0.32948678]
[1768023827590,5.8498335,136.2,136.15,0.32948678]
[1768023827787,0.05522293,136.21,136.15,0.32948678]
[1768023827788,5.8498335,136.19,136.15,0.32948678]
[1768023827990,0.05522293,136.21,136.15,0.32948678]
[1768023828290,5.84983714,136.2,136.15,0.32948678]
[1768023828485,5.84983714,136.19,136.15,0.32948678]
[1768023828689,0.05522293,136.21,136.15,0.32948678]
[1768023828892,5.8512902,136.2,136.15,0.32948678]
[1768023829087,5.8512902,136.19,136.15,0.32948678]
[1768023829288,0.05522293,136.21,136.15,0.32948678]
[1768023829492,5.85137011,136.2,136.15,0.32948678]
[1768023829688,5.85137011,136.19,136.15,0.32948678]
[1768023829889,0.05522293,136.21,136.15,0.32948678]
[1768023830185,5.85156413,136.2,136.15,0.32948678]
[1768023830381,5.85156413,136.19,136.15,0.32948678]
[1768023830581,0.05522293,136.21,136.15,0.32948678]
[1768023830582,5.85153259,136.18,136.15,0.32948678]
[1768023830789,0.3826541,136.21,136.15,0.32948678]
[1768023831000,5.84216034,136.2,136.15,0.32948678]
[1768023831191,5.84216034,136.19,136.15,0.32948678]
[1768023831388,5.84216034,136.18,136.15,0.32948678]
[1768023831688,0.0518041,136.19,136.15,0.32948678]
[1768023831888,5.84151641,136.18,136.15,0.32948678]
[1768023832089,0.0518041,136.19,136.15,0.32948678]
[1768023832290,5.84152369,136.18,136.15,0.32948678]
[1768023832489,0.0518041,136.19,136.15,0.32948678]
[1768023832690,5.8408461,136.18,136.15,0.32948678]
[1768023832890,0.0518041,136.19,136.15,0.32948678]
[1768023833083,5.8408461,136.18,136.15,0.32948678]
[1768023833286,0.0518041,136.19,136.15,0.32948678]
[1768023833488,5.8403043,136.18,136.15,0.32948678]
[1768023833694,0.0518041,136.19,136.15,0.32948678]
[1768023833893,5.8403043,136.18,136.15,0.32948678]
[1768023834199,0.0518041,136.19,136.15,0.32948678]
[1768023834392,5.8403043,136.18,136.15,0.32948678]
[1768023834592,0.0518041,136.19,136.15,0.32948678]
[1768023834897,5.83985423,136.18,136.15,0.32948678]
[1768023835093,0.0518041,136.19,136.15,0.32948678]
[1768023835294,5.83985423,136.18,136.15,0.32948678]
[1768023835495,0.0518041,136.19,136.15,0.32948678]
[1768023835696,5.83947465,136.18,136.15,0.32948678]
[1768023835992,0.0518041,136.19,136.15,0.32948678]
[1768023836195,5.83947465,136.18,136.15,0.32948678]
[1768023836394,0.0518041,136.19,136.15,0.32948678]
[1768023836594,5.83915425,136.18,136.15,0.32948678]
[1768023836798,0.0518041,136.19,136.15,0.32948678]
[1768023837098,5.83915425,136.18,136.15,0.32948678]
[1768023837292,0.0518041,136.19,136.15,0.32948678]
[1768023838493,0.37923527,136.19,136.12,6.6201]
[1768023838698,0.04660241,136.17,136.1,0.31670339]
[1768023839194,5.84006322,136.16,136.1,0.31670339]
[1768023839388,0.04660241,136.17,136.1,0.31670339]
[1768023839592,0.0482242,136.15,136.11,6.93730339]
[1768023841496,0.0482242,136.15,136.12,0.31670339]
[1768023844198,0.04674547,136.19,136.13,0.31759618]
[1768023844404,5.89304694,136.18,136.13,0.31759618]
[1768023844696,5.89304694,136.17,136.13,0.31759618]
[1768023844998,5.89304694,136.16,136.13,0.31759618]
[1768023845190,0.04674547,136.19,136.13,0.31759618]
[1768023845392,5.8920523,136.18,136.13,0.31759618]
[1768023845588,5.8920523,136.17,136.13,0.36546436]
[1768023845795,0.04674547,136.19,136.13,0.36546436]
[1768023846095,5.89201697,136.18,136.13,0.36546436]
[1768023846298,5.89201697,136.17,136.13,0.36546436]
[1768023846489,0.04674547,136.19,136.14,0.31759618]
[1768023846686,5.89097435,136.18,136.14,0.31759618]
[1768023846899,0.09496967,136.21,136.14,0.31759618]
[1768023847102,5.89010493,136.2,136.14,0.31759618]
[1768023847298,5.89010493,136.19,136.14,0.31759618]
[1768023847501,0.09496967,136.21,136.14,0.31759618]
[1768023847693,5.88991595,136.2,136.14,0.31759618]
[1768023847892,5.88991595,136.19,136.14,0.31759618]
[1768023848100,0.09496967,136.21,136.14,0.31759618]
[1768023848300,5.88999622,136.2,136.14,0.31759618]
[1768023848596,5.88999622,136.19,136.14,0.31759618]
[1768023848898,5.88999622,136.18,136.14,0.31759618]
[1768023849102,6.71106967,136.21,136.15,0.04692905]
[1768023849296,5.88997744,136.2,136.15,0.36452523]
[1768023849496,5.88997744,136.19,136.15,0.36452523]
[1768023849701,5.88997744,136.18,136.15,0.36452523]
[1768023849899,6.71106967,136.21,136.15,0.36452523]
[1768023850106,5.88986987,136.2,136.15,0.36452523]
[1768023850301,5.88986987,136.19,136.15,0.36452523]
[1768023850603,0.09496967,136.21,136.15,0.36452523]
[1768023850903,5.88901684,136.2,136.15,0.36452523]
[1768023851102,0.09496967,136.21,136.15,0.36452523]
[1768023851302,5.88924884,136.2,136.15,0.36452523]
[1768023851603,0.09496967,136.21,136.15,0.36452523]
[1768023851802,5.88916144,136.2,136.15,0.36452523]
[1768023851997,0.09496967,136.21,136.15,0.36452523]
[1768023852198,5.8893907,136.2,136.15,0.36452523]
[1768023852397,0.09496967,136.21,136.15,0.36452523]
[1768023852599,5.88931151,136.2,136.15,0.36452523]
[1768023852798,0.09496967,136.21,136.15,0.36452523]
[1768023852996,5.88931151,136.2,136.15,0.36452523]
[1768023853196,0.09496967,136.21,136.15,0.36452523]
[1768023853397,5.88953785,136.2,136.15,0.36452523]
[1768023853694,0.09496967,136.21,136.15,0.36452523]
[1768023853995,5.88946717,136.2,136.15,0.36452523]
[1768023854290,0.09496967,136.21,136.15,0.36452523]
[1768023854494,5.88962856,136.2,136.15,0.36452523]
[1768023854691,0.09496967,136.21,136.16,0.31759618]
[1768023854896,5.88962856,136.2,136.16,0.31759618]
[1768023855103,0.09496967,136.22,136.16,0.31759618]
[1768023855405,5.88983511,136.21,136.16,0.31759618]
[1768023855605,5.88983511,136.2,136.16,6.93589618]
[1768023855796,0.09496967,136.22,136.16,6.93589618]
[1768023856098,5.88978211,136.21,136.16,6.93589618]
[1768023856303,5.88978211,136.2,136.16,6.93589618]
[1768023856506,0.09496967,136.22,136.16,6.93589618]
[1768023856807,5.8899518,136.21,136.16,6.93589618]
[1768023857005,5.8899518,136.2,136.16,6.93589618]
[1768023857197,0.09496967,136.22,136.16,6.93589618]
[1768023857398,5.89016156,136.21,136.16,6.93589618]
[1768023857598,0.09496967,136.22,136.16,6.93589618]
[1768023857599,5.89016156,136.2,136.16,6.93589618]
[1768023857803,0.09496967,136.22,136.16,6.93589618]
[1768023858004,5.89012721,136.21,136.16,6.93589618]
[1768023858209,5.89012721,136.2,136.17,0.04656846]
[1768023858506,0.09496967,136.22,136.17,0.04656846]
[1768023858701,5.89030849,136.21,136.17,0.04656846]
[1768023859001,5.89030849,136.2,136.17,0.04656846]
[1768023859200,0.09496967,136.22,136.17,0.04656846]
[1768023859496,5.89051011,136.21,136.17,0.04656846]
[1768023859693,5.89051011,136.2,136.17,0.04656846]
[1768023859894,0.09496967,136.22,136.17,0.04656846]
[1768023860097,5.89050104,136.21,136.17,0.04656846]
[1768023860305,5.89050104,136.2,136.17,0.04656846]
[1768023860502,0.09496967,136.22,136.17,0.04656846]
[1768023860696,5.89070008,136.21,136.17,0.04656846]